[Event "Titled Tuesday Blitz February 21 Early 2023"]
[White "Dehtiarov, Roman"]
[Black "Daneshvar, Bardiya"]
[WhiteFideId "14186640"]
[BlackFideId "12576468"]
[WhiteElo "2289"]
[BlackElo "2540"]
[Result "1-0"]
[Round "03"]
[TimeControl "180+2"]
[Date "2023.02.21"]
[WhiteClock "0:00:06"]
[BlackClock "0:00:02"]

1. e4 {[%clk 0:02:59]}  Nf6 {[%clk 0:02:59]} 2. Nc3 {[%clk 0:02:47]}  d5 {[%clk 0:02:55]} 3. e5 {[%clk 0:02:42]}  Ne4 {[%clk 0:02:54]} 4. d4 {[%clk 0:02:36]}  Nxc3 {[%clk 0:02:54]} 5. bxc3 {[%clk 0:02:36]}  c5 {[%clk 0:02:55]} 6. f4 {[%clk 0:02:36]}  Bf5 {[%clk 0:02:51]} 7. Nf3 {[%clk 0:02:36]}  e6 {[%clk 0:02:51]} 8. Bd3 {[%clk 0:02:30]}  Bxd3 {[%clk 0:02:50]} 9. Qxd3 {[%clk 0:02:31]}  Nc6 {[%clk 0:02:47]} 10. O-O {[%clk 0:02:29]}  g6 {[%clk 0:02:47]} 11. Rb1 {[%clk 0:02:25]}  c4 {[%clk 0:02:42]} 12. Qe2 {[%clk 0:02:22]}  Qc7 {[%clk 0:02:39]} 13. g4 {[%clk 0:02:22]}  h5 {[%clk 0:02:38]} 14. h3 {[%clk 0:02:22]}  O-O-O {[%clk 0:02:37]} 15. Ng5 {[%clk 0:02:21]}  Bh6 {[%clk 0:02:35]} 16. Ba3 {[%clk 0:02:18]}  hxg4 {[%clk 0:02:33]} 17. Bd6 {[%clk 0:02:13]}  Rxd6 {[%clk 0:02:19]} 18. exd6 {[%clk 0:02:14]}  Qd7 {[%clk 0:02:18]} 19. Qxg4 {[%clk 0:02:04]}  Bf8 {[%clk 0:02:17]} 20. Nf3 {[%clk 0:02:03]}  Bxd6 {[%clk 0:02:13]} 21. Ne5 {[%clk 0:02:03]}  Bxe5 {[%clk 0:02:09]} 22. fxe5 {[%clk 0:02:04]}  Rh7 {[%clk 0:02:03]} 23. Rf4 {[%clk 0:01:23]}  Ne7 {[%clk 0:02:01]} 24. Rbf1 {[%clk 0:01:21]}  Nf5 {[%clk 0:02:00]} 25. h4 {[%clk 0:01:12]}  Kb8 {[%clk 0:01:42]} 26. Qg5 {[%clk 0:01:10]}  a6 {[%clk 0:01:39]} 27. Kf2 {[%clk 0:01:06]}  Ka7 {[%clk 0:01:36]} 28. Ke2 {[%clk 0:00:59]}  Rh5 {[%clk 0:01:29]} 29. Qf6 {[%clk 0:00:55]}  Ng3+ {[%clk 0:01:27]} 30. Kd2 {[%clk 0:00:55]}  Nxf1+ {[%clk 0:01:15]} 31. Rxf1 {[%clk 0:00:56]}  Rh7 {[%clk 0:01:14]} 32. Rf4 {[%clk 0:00:55]}  Qe8 {[%clk 0:01:09]} 33. Rf2 {[%clk 0:00:52]}  Qf8 {[%clk 0:01:07]} 34. Kc1 {[%clk 0:00:48]}  Qa3+ {[%clk 0:01:04]} 35. Kd2 {[%clk 0:00:47]}  Qxa2 {[%clk 0:01:02]} 36. Qe7 {[%clk 0:00:45]}  Qb1 {[%clk 0:00:42]} 37. Rxf7 {[%clk 0:00:41]}  Rh8 {[%clk 0:00:33]} 38. Qc5+ {[%clk 0:00:32]}  Qb6 {[%clk 0:00:32]} 39. Qxb6+ {[%clk 0:00:31]}  Kxb6 {[%clk 0:00:33]} 40. Rf6 {[%clk 0:00:32]}  Rxh4 {[%clk 0:00:33]} 41. Rxe6+ {[%clk 0:00:32]}  Kc7 {[%clk 0:00:31]} 42. Rxg6 {[%clk 0:00:31]}  Rh8 {[%clk 0:00:31]} 43. Rg7+ {[%clk 0:00:28]}  Kc6 {[%clk 0:00:30]} 44. Rg6+ {[%clk 0:00:27]}  Kc7 {[%clk 0:00:30]} 45. Rg7+ {[%clk 0:00:23]}  Kc8 {[%clk 0:00:31]} 46. Kc1 {[%clk 0:00:20]}  Rd8 {[%clk 0:00:28]} 47. Kb2 {[%clk 0:00:21]}  Rd7 {[%clk 0:00:29]} 48. Rg8+ {[%clk 0:00:21]}  Kc7 {[%clk 0:00:29]} 49. Ka3 {[%clk 0:00:21]}  Rh7 {[%clk 0:00:27]} 50. Kb4 {[%clk 0:00:20]}  b6 {[%clk 0:00:25]} 51. Rg6 {[%clk 0:00:19]}  Rh2 {[%clk 0:00:21]} 52. Rg7+ {[%clk 0:00:19]}  Kc8 {[%clk 0:00:22]} 53. Rg8+ {[%clk 0:00:19]}  Kd7 {[%clk 0:00:21]} 54. Rg7+ {[%clk 0:00:20]}  Kd8 {[%clk 0:00:20]} 55. Rg8+ {[%clk 0:00:20]}  Ke7 {[%clk 0:00:19]} 56. Rg7+ {[%clk 0:00:20]}  Kd8 {[%clk 0:00:13]} 57. Rb7 {[%clk 0:00:20]}  Rh6 {[%clk 0:00:08]} 58. Ra7 {[%clk 0:00:20]}  Kc8 {[%clk 0:00:04]} 59. Rxa6 {[%clk 0:00:17]}  Kb7 {[%clk 0:00:05]} 60. Ra1 {[%clk 0:00:16]}  Rh2 {[%clk 0:00:05]} 61. Rc1 {[%clk 0:00:13]}  Kc6 {[%clk 0:00:04]} 62. Ka3 {[%clk 0:00:13]}  b5 {[%clk 0:00:02]} 63. Kb2 {[%clk 0:00:14]}  Rd2 {[%clk 0:00:02]} 64. Rf1 {[%clk 0:00:14]}  b4 {[%clk 0:00:02]} 65. Rf6+ {[%clk 0:00:15]}  Kb5 {[%clk 0:00:02]} 66. Rd6 {[%clk 0:00:15]}  b3 {[%clk 0:00:02]} 67. Rxd5+ {[%clk 0:00:10]}  Ka4 {[%clk 0:00:02]} 68. Rc5 {[%clk 0:00:09]}  Rxc2+ {[%clk 0:00:02]} 69. Kb1 {[%clk 0:00:09]}  Rxc3 {[%clk 0:00:03]} 70. e6 {[%clk 0:00:08]}  Kb4 {[%clk 0:00:04]} 71. e7 {[%clk 0:00:07]}  Rh3 {[%clk 0:00:03]} 72. e8=Q {[%clk 0:00:04]}  Rh1+ {[%clk 0:00:03]} 73. Kb2 {[%clk 0:00:05]}  Rh2+ {[%clk 0:00:03]} 74. Kc1 {[%clk 0:00:05]}  b2+ {[%clk 0:00:03]} 75. Kb1 {[%clk 0:00:06]}  c3 {[%clk 0:00:02]} 76. Qb5+ {[%clk 0:00:06]}  Ka3 {[%clk 0:00:02]} 77. Rxc3# {[%clk 0:00:06]} 1-0


[Site "https://www.chess.com"]

[Event "Titled Tuesday Blitz February 21 Early 2023"]
[White "Golubka, Petro"]
[Black "Alekseenko, Kirill"]
[WhiteFideId "14114224"]
[BlackFideId "4135539"]
[WhiteElo "2371"]
[BlackElo "2686"]
[Result "1-0"]
[Round "03"]
[TimeControl "180+2"]
[Date "2023.02.21"]
[WhiteClock "0:00:06"]
[BlackClock "0:00:06"]

1. e4 {[%clk 0:03:00]}  e5 {[%clk 0:03:00]} 2. Bb5 {[%clk 0:02:59]}  Nf6 {[%clk 0:02:51]} 3. Nc3 {[%clk 0:02:58]}  c6 {[%clk 0:02:51]} 4. Ba4 {[%clk 0:02:52]}  b5 {[%clk 0:02:51]} 5. Bb3 {[%clk 0:02:52]}  b4 {[%clk 0:02:48]} 6. Na4 {[%clk 0:02:52]}  Nxe4 {[%clk 0:02:44]} 7. Qe2 {[%clk 0:02:51]}  d5 {[%clk 0:02:40]} 8. d3 {[%clk 0:02:50]}  Nf6 {[%clk 0:02:31]} 9. Qxe5+ {[%clk 0:02:50]}  Be7 {[%clk 0:02:25]} 10. Nf3 {[%clk 0:02:48]}  O-O {[%clk 0:02:25]} 11. O-O {[%clk 0:02:44]}  Bd6 {[%clk 0:02:22]} 12. Qd4 {[%clk 0:02:40]}  Nbd7 {[%clk 0:02:07]} 13. Bg5 {[%clk 0:02:33]}  h6 {[%clk 0:02:07]} 14. Bh4 {[%clk 0:02:30]}  Qc7 {[%clk 0:02:01]} 15. Bg3 {[%clk 0:02:30]}  c5 {[%clk 0:01:43]} 16. Qh4 {[%clk 0:02:19]}  Bb7 {[%clk 0:01:42]} 17. c3 {[%clk 0:02:09]}  a5 {[%clk 0:01:40]} 18. d4 {[%clk 0:02:02]}  c4 {[%clk 0:01:34]} 19. Bc2 {[%clk 0:02:02]}  Rfe8 {[%clk 0:01:30]} 20. Rfe1 {[%clk 0:01:56]}  Ne4 {[%clk 0:01:24]} 21. Bxe4 {[%clk 0:01:50]}  dxe4 {[%clk 0:01:20]} 22. Nd2 {[%clk 0:01:45]}  f5 {[%clk 0:01:15]} 23. Bxd6 {[%clk 0:01:36]}  Qxd6 {[%clk 0:01:15]} 24. Nxc4 {[%clk 0:01:37]}  Qc6 {[%clk 0:01:13]} 25. b3 {[%clk 0:01:37]}  Ba6 {[%clk 0:01:07]} 26. d5 {[%clk 0:01:26]}  Qc7 {[%clk 0:00:51]} 27. Ne3 {[%clk 0:01:13]}  f4 {[%clk 0:00:42]} 28. Nf5 {[%clk 0:01:09]}  bxc3 {[%clk 0:00:39]} 29. d6 {[%clk 0:01:05]}  Qd8 {[%clk 0:00:34]} 30. Ne7+ {[%clk 0:01:01]}  Kh7 {[%clk 0:00:35]} 31. Nxc3 {[%clk 0:00:47]}  Nf6 {[%clk 0:00:34]} 32. Qxf4 {[%clk 0:00:42]}  Bd3 {[%clk 0:00:35]} 33. Rad1 {[%clk 0:00:33]}  Ra6 {[%clk 0:00:35]} 34. Nxe4 {[%clk 0:00:26]}  Bxe4 {[%clk 0:00:33]} 35. Rxe4 {[%clk 0:00:27]}  Nxe4 {[%clk 0:00:30]} 36. Qf5+ {[%clk 0:00:26]}  Kh8 {[%clk 0:00:28]} 37. Ng6+ {[%clk 0:00:21]}  Kg8 {[%clk 0:00:28]} 38. d7 {[%clk 0:00:19]}  Ree6 {[%clk 0:00:16]} 39. Qf8+ {[%clk 0:00:17]}  Qxf8 {[%clk 0:00:16]} 40. Nxf8 {[%clk 0:00:18]}  Rad6 {[%clk 0:00:16]} 41. d8=Q {[%clk 0:00:19]}  Rxd8 {[%clk 0:00:16]} 42. Rxd8 {[%clk 0:00:20]}  Rc6 {[%clk 0:00:11]} 43. h4 {[%clk 0:00:18]}  Rc1+ {[%clk 0:00:08]} 44. Kh2 {[%clk 0:00:18]}  Nxf2 {[%clk 0:00:08]} 45. h5 {[%clk 0:00:17]}  Kf7 {[%clk 0:00:07]} 46. Ng6 {[%clk 0:00:16]}  Ng4+ {[%clk 0:00:06]} 47. Kg3 {[%clk 0:00:16]}  Nf6 {[%clk 0:00:07]} 48. Nf4 {[%clk 0:00:17]}  Rc2 {[%clk 0:00:08]} 49. a4 {[%clk 0:00:15]}  Rb2 {[%clk 0:00:07]} 50. Rb8 {[%clk 0:00:15]}  Ne4+ {[%clk 0:00:07]} 51. Kg4 {[%clk 0:00:13]}  Nc5 {[%clk 0:00:08]} 52. Rb5 {[%clk 0:00:11]}  Ne4 {[%clk 0:00:06]} 53. Kf3 {[%clk 0:00:08]}  Ng5+ {[%clk 0:00:07]} 54. Ke3 {[%clk 0:00:08]}  Rb1 {[%clk 0:00:07]} 55. Kd3 {[%clk 0:00:07]}  Rf1 {[%clk 0:00:08]} 56. g3 {[%clk 0:00:07]}  Rf3+ {[%clk 0:00:07]} 57. Kc2 {[%clk 0:00:07]}  Rxg3 {[%clk 0:00:08]} 58. Rxa5 {[%clk 0:00:08]}  Ne4 {[%clk 0:00:09]} 59. Ra7+ {[%clk 0:00:08]}  Kf6 {[%clk 0:00:09]} 60. Rc7 {[%clk 0:00:07]}  Ke5 {[%clk 0:00:09]} 61. Nd3+ {[%clk 0:00:06]}  Kd4 {[%clk 0:00:10]} 62. Rc4+ {[%clk 0:00:06]}  Ke3 {[%clk 0:00:11]} 63. Nc5 {[%clk 0:00:06]}  Rg2+ {[%clk 0:00:11]} 64. Kc1 {[%clk 0:00:06]}  Nd2 {[%clk 0:00:07]} 65. Rc3+ {[%clk 0:00:06]}  Kf4 {[%clk 0:00:06]} 66. Ne6+ {[%clk 0:00:06]}  Ke5 {[%clk 0:00:06]} 67. Re3+ {[%clk 0:00:04]}  Kd6 {[%clk 0:00:05]} 68. Nf4 {[%clk 0:00:04]}  Rh2 {[%clk 0:00:04]} 69. Rd3+ {[%clk 0:00:04]}  Ke5 {[%clk 0:00:05]} 70. Rxd2 {[%clk 0:00:05]}  Rh1+ {[%clk 0:00:06]} 71. Rd1 {[%clk 0:00:06]}  Rh4 {[%clk 0:00:06]} 72. Nd3+ {[%clk 0:00:06]}  Kd4 {[%clk 0:00:06]} 73. Kc2 {[%clk 0:00:06]}  Rxh5 {[%clk 0:00:06]} 74. Nf4+ {[%clk 0:00:06]} 1-0


[Site "https://www.chess.com"]

[Event "Titled Tuesday Blitz February 21 Early 2023"]
[White "Korchmar, Vasiliy"]
[Black "Erigaisi Arjun"]
[WhiteFideId "24131750"]
[BlackFideId "35009192"]
[WhiteElo "2438"]
[BlackElo "2701"]
[Result "0-1"]
[Round "03"]
[TimeControl "180+2"]
[Date "2023.02.21"]
[WhiteClock "0:00:01"]
[BlackClock "0:00:11"]

1. e4 {[%clk 0:03:00]}  c6 {[%clk 0:02:56]} 2. d4 {[%clk 0:03:00]}  d5 {[%clk 0:02:57]} 3. e5 {[%clk 0:03:01]}  Bf5 {[%clk 0:02:56]} 4. Nd2 {[%clk 0:03:02]}  e6 {[%clk 0:02:56]} 5. Nb3 {[%clk 0:03:02]}  a6 {[%clk 0:02:56]} 6. Nf3 {[%clk 0:03:02]}  Nd7 {[%clk 0:02:55]} 7. Be2 {[%clk 0:02:58]}  c5 {[%clk 0:02:53]} 8. dxc5 {[%clk 0:02:58]}  Nxc5 {[%clk 0:02:54]} 9. Nfd4 {[%clk 0:02:51]}  Bg6 {[%clk 0:02:45]} 10. O-O {[%clk 0:02:47]}  Rc8 {[%clk 0:02:45]} 11. Be3 {[%clk 0:02:25]}  Na4 {[%clk 0:02:43]} 12. Rb1 {[%clk 0:02:10]}  Be7 {[%clk 0:02:41]} 13. f4 {[%clk 0:01:58]}  Nh6 {[%clk 0:02:40]} 14. g4 {[%clk 0:01:59]}  Be4 {[%clk 0:02:16]} 15. f5 {[%clk 0:01:54]}  Bg5 {[%clk 0:01:47]} 16. Qd2 {[%clk 0:01:49]}  Bxe3+ {[%clk 0:01:47]} 17. Qxe3 {[%clk 0:01:50]}  exf5 {[%clk 0:01:47]} 18. gxf5 {[%clk 0:01:49]}  Qh4 {[%clk 0:01:34]} 19. Nd2 {[%clk 0:00:38]}  Nc5 {[%clk 0:01:16]} 20. b4 {[%clk 0:00:32]}  Nd7 {[%clk 0:01:17]} 21. Nxe4 {[%clk 0:00:30]}  Qxe4 {[%clk 0:01:09]} 22. Qxe4 {[%clk 0:00:31]}  dxe4 {[%clk 0:01:10]} 23. e6 {[%clk 0:00:29]}  Nf6 {[%clk 0:01:10]} 24. c4 {[%clk 0:00:19]}  Ke7 {[%clk 0:01:10]} 25. c5 {[%clk 0:00:15]}  Rhd8 {[%clk 0:01:08]} 26. Rbd1 {[%clk 0:00:15]}  a5 {[%clk 0:00:58]} 27. a3 {[%clk 0:00:15]}  axb4 {[%clk 0:00:58]} 28. axb4 {[%clk 0:00:15]}  Nd5 {[%clk 0:00:59]} 29. exf7 {[%clk 0:00:13]}  Nc3 {[%clk 0:00:57]} 30. Bc4 {[%clk 0:00:02]}  Nxd1 {[%clk 0:00:54]} 31. Rxd1 {[%clk 0:00:03]}  Nxf7 {[%clk 0:00:53]} 32. Be6 {[%clk 0:00:03]}  Ra8 {[%clk 0:00:50]} 33. c6 {[%clk 0:00:02]}  Ne5 {[%clk 0:00:40]} 34. c7 {[%clk 0:00:01]}  Rxd4 {[%clk 0:00:39]} 35. Rxd4 {[%clk 0:00:02]}  Nf3+ {[%clk 0:00:40]} 36. Kf2 {[%clk 0:00:02]}  Nxd4 {[%clk 0:00:40]} 37. c8=Q {[%clk 0:00:03]}  Rxc8 {[%clk 0:00:41]} 38. Bxc8 {[%clk 0:00:04]}  b6 {[%clk 0:00:30]} 39. Ke3 {[%clk 0:00:04]}  Nc2+ {[%clk 0:00:30]} 40. Kxe4 {[%clk 0:00:05]}  Nxb4 {[%clk 0:00:31]} 41. Ke5 {[%clk 0:00:05]}  Nd3+ {[%clk 0:00:28]} 42. Kd5 {[%clk 0:00:04]}  Kf6 {[%clk 0:00:27]} 43. Kc6 {[%clk 0:00:04]}  Ne5+ {[%clk 0:00:22]} 44. Kxb6 {[%clk 0:00:04]}  Nf3 {[%clk 0:00:23]} 45. h3 {[%clk 0:00:04]}  Ng5 {[%clk 0:00:18]} 46. Kc5 {[%clk 0:00:03]}  Nxh3 {[%clk 0:00:18]} 47. Kd4 {[%clk 0:00:04]}  Ng5 {[%clk 0:00:18]} 48. Kd5 {[%clk 0:00:02]}  h5 {[%clk 0:00:17]} 49. Bd7 {[%clk 0:00:02]}  h4 {[%clk 0:00:17]} 50. Kd4 {[%clk 0:00:02]}  h3 {[%clk 0:00:17]} 51. Ke3 {[%clk 0:00:03]}  Ke5 {[%clk 0:00:13]} 52. Kf2 {[%clk 0:00:02]}  Kf4 {[%clk 0:00:13]} 53. Bc8 {[%clk 0:00:01]}  Ne4+ {[%clk 0:00:10]} 54. Kg1 {[%clk 0:00:01]}  Kg3 {[%clk 0:00:11]} 55. Bb7 {[%clk 0:00:01]}  h2+ {[%clk 0:00:11]} 56. Kh1 {[%clk 0:00:01]}  Nf2# {[%clk 0:00:11]} 0-1


[Site "https://www.chess.com"]

[Event "Titled Tuesday Blitz February 21 Early 2023"]
[White "Liyanage, Ranindu Dilshan"]
[Black "Lazavik, Denis"]
[WhiteFideId "9915834"]
[BlackFideId "13515110"]
[WhiteElo "2342"]
[BlackElo "2544"]
[Result "0-1"]
[Round "03"]
[TimeControl "180+2"]
[Date "2023.02.21"]
[WhiteClock "0:00:06"]
[BlackClock "0:00:09"]

1. e4 {[%clk 0:03:00]}  c5 {[%clk 0:02:59]} 2. Nc3 {[%clk 0:03:00]}  Nc6 {[%clk 0:02:58]} 3. Bb5 {[%clk 0:02:59]}  Nd4 {[%clk 0:02:58]} 4. Bc4 {[%clk 0:03:00]}  e6 {[%clk 0:02:56]} 5. Nge2 {[%clk 0:03:00]}  Nf6 {[%clk 0:02:49]} 6. O-O {[%clk 0:02:59]}  a6 {[%clk 0:02:37]} 7. a4 {[%clk 0:02:58]}  d5 {[%clk 0:02:32]} 8. exd5 {[%clk 0:02:59]}  exd5 {[%clk 0:02:32]} 9. Ba2 {[%clk 0:02:58]}  Be7 {[%clk 0:02:17]} 10. d3 {[%clk 0:02:52]}  Nc6 {[%clk 0:02:01]} 11. Nf4 {[%clk 0:02:42]}  d4 {[%clk 0:01:55]} 12. Ncd5 {[%clk 0:02:23]}  O-O {[%clk 0:01:53]} 13. Re1 {[%clk 0:02:14]}  Bd6 {[%clk 0:01:52]} 14. Qf3 {[%clk 0:02:00]}  Ne5 {[%clk 0:01:42]} 15. Qg3 {[%clk 0:01:26]}  Ng6 {[%clk 0:01:32]} 16. Qg5 {[%clk 0:01:19]}  Nxd5 {[%clk 0:01:18]} 17. Qxd8 {[%clk 0:01:06]}  Rxd8 {[%clk 0:01:19]} 18. Nxd5 {[%clk 0:01:06]}  Bf5 {[%clk 0:01:02]} 19. Bg5 {[%clk 0:01:02]}  Re8 {[%clk 0:01:00]} 20. Nb6 {[%clk 0:00:55]}  Rab8 {[%clk 0:00:59]} 21. Bd5 {[%clk 0:00:53]}  Bc7 {[%clk 0:00:56]} 22. a5 {[%clk 0:00:48]}  h6 {[%clk 0:00:55]} 23. Bd2 {[%clk 0:00:45]}  Be6 {[%clk 0:00:54]} 24. Bxe6 {[%clk 0:00:40]}  fxe6 {[%clk 0:00:55]} 25. Nc4 {[%clk 0:00:30]}  e5 {[%clk 0:00:50]} 26. Re4 {[%clk 0:00:31]}  Re7 {[%clk 0:00:26]} 27. Rae1 {[%clk 0:00:30]}  Rbe8 {[%clk 0:00:27]} 28. h4 {[%clk 0:00:26]}  Kf7 {[%clk 0:00:26]} 29. h5 {[%clk 0:00:22]}  Nf8 {[%clk 0:00:26]} 30. b4 {[%clk 0:00:13]}  Nd7 {[%clk 0:00:26]} 31. bxc5 {[%clk 0:00:12]}  Nxc5 {[%clk 0:00:27]} 32. R4e2 {[%clk 0:00:11]}  Nd7 {[%clk 0:00:24]} 33. Bb4 {[%clk 0:00:11]}  Re6 {[%clk 0:00:25]} 34. Re4 {[%clk 0:00:11]}  Nf6 {[%clk 0:00:25]} 35. R4e2 {[%clk 0:00:11]}  Nxh5 {[%clk 0:00:25]} 36. g3 {[%clk 0:00:08]}  Nf6 {[%clk 0:00:25]} 37. Kg2 {[%clk 0:00:08]}  e4 {[%clk 0:00:24]} 38. dxe4 {[%clk 0:00:08]}  Rxe4 {[%clk 0:00:25]} 39. Rxe4 {[%clk 0:00:08]}  Rxe4 {[%clk 0:00:26]} 40. Rxe4 {[%clk 0:00:09]}  Nxe4 {[%clk 0:00:27]} 41. Kf3 {[%clk 0:00:09]}  Ng5+ {[%clk 0:00:27]} 42. Ke2 {[%clk 0:00:08]}  Ke6 {[%clk 0:00:28]} 43. Bf8 {[%clk 0:00:06]}  Kf7 {[%clk 0:00:25]} 44. Ba3 {[%clk 0:00:05]}  Ne4 {[%clk 0:00:20]} 45. Bb2 {[%clk 0:00:05]}  Nd6 {[%clk 0:00:09]} 46. Nxd6+ {[%clk 0:00:04]}  Bxd6 {[%clk 0:00:10]} 47. Bxd4 {[%clk 0:00:05]}  h5 {[%clk 0:00:11]} 48. Bb6 {[%clk 0:00:06]}  Ke6 {[%clk 0:00:10]} 49. Kf3 {[%clk 0:00:06]}  Kf5 {[%clk 0:00:11]} 50. c4 {[%clk 0:00:05]}  g5 {[%clk 0:00:11]} 51. Kg2 {[%clk 0:00:05]}  Ke4 {[%clk 0:00:09]} 52. Bd8 {[%clk 0:00:04]}  g4 {[%clk 0:00:09]} 53. Bb6 {[%clk 0:00:05]}  Be5 {[%clk 0:00:09]} 54. Ba7 {[%clk 0:00:04]}  Kd3 {[%clk 0:00:10]} 55. c5 {[%clk 0:00:04]}  Bc3 {[%clk 0:00:10]} 56. Bb6 {[%clk 0:00:03]}  Ke4 {[%clk 0:00:10]} 57. Kh2 {[%clk 0:00:01]}  Bd4 {[%clk 0:00:10]} 58. Kg2 {[%clk 0:00:02]}  Kd5 {[%clk 0:00:11]} 59. f3 {[%clk 0:00:03]}  Bxc5 {[%clk 0:00:09]} 60. Bd8 {[%clk 0:00:04]}  Bd4 {[%clk 0:00:06]} 61. fxg4 {[%clk 0:00:03]}  hxg4 {[%clk 0:00:07]} 62. Kf1 {[%clk 0:00:04]}  Ke4 {[%clk 0:00:08]} 63. Ke2 {[%clk 0:00:05]}  Be5 {[%clk 0:00:09]} 64. Kf2 {[%clk 0:00:05]}  Bd6 {[%clk 0:00:09]} 65. Ke2 {[%clk 0:00:06]}  Bxg3 {[%clk 0:00:09]} 0-1


[Site "https://www.chess.com"]

[Event "Titled Tuesday Blitz February 21 Early 2023"]
[White "UnknownMagician"]
[Black "Svane, Rasmus"]
[BlackFideId "4657101"]
[WhiteElo "2686"]
[BlackElo "2623"]
[Result "1/2-1/2"]
[Round "03"]
[TimeControl "180+2"]
[Date "2023.02.21"]
[WhiteClock "0:00:04"]
[BlackClock "0:00:16"]

1. c4 {[%clk 0:03:00]}  e6 {[%clk 0:02:58]} 2. Nf3 {[%clk 0:03:00]}  d5 {[%clk 0:02:58]} 3. e3 {[%clk 0:03:01]}  Nf6 {[%clk 0:02:58]} 4. Nc3 {[%clk 0:03:01]}  dxc4 {[%clk 0:02:58]} 5. Bxc4 {[%clk 0:03:01]}  a6 {[%clk 0:02:58]} 6. O-O {[%clk 0:02:58]}  b5 {[%clk 0:02:57]} 7. Be2 {[%clk 0:02:58]}  Bb7 {[%clk 0:02:58]} 8. b3 {[%clk 0:02:56]}  Bd6 {[%clk 0:02:56]} 9. Bb2 {[%clk 0:02:55]}  O-O {[%clk 0:02:55]} 10. d4 {[%clk 0:02:54]}  Nbd7 {[%clk 0:02:54]} 11. a4 {[%clk 0:02:51]}  b4 {[%clk 0:02:54]} 12. Nb1 {[%clk 0:02:51]}  c5 {[%clk 0:02:53]} 13. Nbd2 {[%clk 0:02:51]}  Rc8 {[%clk 0:02:47]} 14. Nc4 {[%clk 0:02:51]}  Bb8 {[%clk 0:02:47]} 15. a5 {[%clk 0:02:45]}  Qe7 {[%clk 0:02:45]} 16. Nfe5 {[%clk 0:02:36]}  Rfd8 {[%clk 0:02:33]} 17. Qb1 {[%clk 0:02:26]}  Be4 {[%clk 0:02:12]} 18. Bd3 {[%clk 0:02:06]}  Nxe5 {[%clk 0:02:11]} 19. Nxe5 {[%clk 0:02:05]}  Bxe5 {[%clk 0:01:57]} 20. Bxe4 {[%clk 0:01:25]}  cxd4 {[%clk 0:01:56]} 21. f4 {[%clk 0:01:25]}  Nxe4 {[%clk 0:01:46]} 22. Qxe4 {[%clk 0:01:26]}  Bf6 {[%clk 0:01:44]} 23. Bxd4 {[%clk 0:01:24]}  Bxd4 {[%clk 0:01:43]} 24. exd4 {[%clk 0:01:25]}  Qd7 {[%clk 0:01:37]} 25. Rfd1 {[%clk 0:01:17]}  Rc3 {[%clk 0:01:33]} 26. d5 {[%clk 0:00:53]}  exd5 {[%clk 0:01:31]} 27. Qxb4 {[%clk 0:00:53]}  Rc6 {[%clk 0:01:26]} 28. Qd4 {[%clk 0:00:52]}  h6 {[%clk 0:01:26]} 29. h3 {[%clk 0:00:51]}  Rc2 {[%clk 0:01:08]} 30. Rd2 {[%clk 0:00:50]}  Rxd2 {[%clk 0:01:08]} 31. Qxd2 {[%clk 0:00:51]}  d4 {[%clk 0:01:08]} 32. Qd3 {[%clk 0:00:48]}  Qd6 {[%clk 0:01:07]} 33. f5 {[%clk 0:00:33]}  Qf6 {[%clk 0:00:56]} 34. Rd1 {[%clk 0:00:31]}  Rd5 {[%clk 0:00:55]} 35. b4 {[%clk 0:00:29]}  Qd6 {[%clk 0:00:54]} 36. Qe4 {[%clk 0:00:18]}  Qd7 {[%clk 0:00:47]} 37. f6 {[%clk 0:00:14]}  gxf6 {[%clk 0:00:47]} 38. Rd3 {[%clk 0:00:12]}  Kg7 {[%clk 0:00:41]} 39. Rg3+ {[%clk 0:00:10]}  Rg5 {[%clk 0:00:42]} 40. Rd3 {[%clk 0:00:10]}  Rd5 {[%clk 0:00:35]} 41. Rg3+ {[%clk 0:00:10]}  Kf8 {[%clk 0:00:35]} 42. Qh7 {[%clk 0:00:07]}  d3 {[%clk 0:00:36]} 43. Re3 {[%clk 0:00:05]}  Re5 {[%clk 0:00:33]} 44. Rxd3 {[%clk 0:00:06]}  Qc7 {[%clk 0:00:24]} 45. Qxh6+ {[%clk 0:00:04]}  Ke7 {[%clk 0:00:24]} 46. Qd2 {[%clk 0:00:04]}  Re4 {[%clk 0:00:23]} 47. Re3 {[%clk 0:00:04]}  Qa7 {[%clk 0:00:20]} 48. Kf2 {[%clk 0:00:05]}  Kf8 {[%clk 0:00:20]} 49. Kf3 {[%clk 0:00:05]}  Rc4 {[%clk 0:00:14]} 50. Qd6+ {[%clk 0:00:04]}  Kg7 {[%clk 0:00:14]} 51. Qg3+ {[%clk 0:00:04]}  Kf8 {[%clk 0:00:14]} 52. Qd6+ {[%clk 0:00:04]}  Kg7 {[%clk 0:00:15]} 53. Qg3+ {[%clk 0:00:04]}  Kf8 {[%clk 0:00:16]} 54. Qd6+ {[%clk 0:00:04]} 1/2-1/2


[Site "https://www.chess.com"]